[Event "IX Famalicao Open 2022"]
[Site "Vila Nova de Famalicao"]
[Date "2022.07.27"]
[Round "6.12"]
[White "Pina, Tiago"]
[Black "Prochaieva, Alina"]
[Result "1-0"]
[ECO "B42"]
[WhiteElo "1897"]
[BlackElo "1585"]
[Annotator "NA RC COMBH"]
[PlyCount "131"]
[EventDate "2022.07.25"]
[EventType "tourn"]
[EventCountry "POR"]
[SourceTitle "playchess.com"]
[Source "ChessBase"]
[SourceQuality "1"]
[TimeControl "5400+30"]

1. e4 {[%emt 0:06:27]} c5 {[%emt 0:00:00]} 2. Nf3 {[%emt 0:00:49]} e6 {[%emt 0:00:00]} 3. d4 {[%emt 0:00:04]} cxd4 {[%emt 0:00:02]} 4. Nxd4 {[%emt 0:00:36]} a6 {[%emt 0:00:19]} 5. Bd3 g6 {[%emt 0:00:23]} 6. Nc3 {[%emt 0:00:44]} Bg7 {[%emt 0:01:40]} 7. Be3 {[%emt 0:01:48]} d6 {[%emt 0:06:30]} 8. Qe2 {[%emt 0:05:42]} Nf6 {[%emt 0:04:17]} 9. O-O-O {[%emt 0:03:30]} b5 {[%emt 0:05:05]} 10. a3 {[%emt 0:01:22]} Bb7 {[%emt 0:05:28]} 11. g4 {[%emt 0:08:12]} Qc7 {[%emt 0:08:28]} 12. Bxb5+ {[%emt 0:05:11]} Nbd7 {[%emt 0:08:58]} 13. Bxd7+ {[%emt 0:04:52]} Nxd7 {[%emt 0:03:10]} 14. h4 {[%emt 0:10:14]} Nb6 {[%emt 0:07:32]} 15. h5 {[%emt 0:21:07]} Nc4 {[%emt 0:04:14]} 16. h6 {[%emt 0:02:10]} Bf8 {[%emt 0:04:36]} 17. Bd2 {[%emt 0:04:26]} Rc8 {[%emt 0:04:25]} 18. Nb3 {[%emt 0:01:32]} a5 {[%emt 0:03:26]} 19. a4 {[%emt 0:05:39]} Ba6 {[%emt 0:03:15]} 20. f4 {[%emt 0:01:25]} Qc6 {[%emt 0:04:52]} 21. Qf2 {[%emt 0:00:42]} Kd7 {[%emt 0:03:52]} 22. f5 {[%emt 0:00:52]} Be7 {[%emt 0:01:50]} 23. g5 {[%emt 0:00:49]} Rhf8 {[%emt 0:03:19]} 24. Kb1 {[%emt 0:02:30]} Rb8 {[%emt 0:03:05]} 25. Qd4 {[%emt 0:03:32]} e5 {[%emt 0:02:06]} 26. Qf2 {[%emt 0:01:44]} Qb7 {[%emt 0:01:42]} 27. Nd5 {[%emt 0:00:58]} Nxd2+ {[%emt 0:02:22]} 28. Qxd2 {[%emt 0:00:07]} Rfd8 {[%emt 0:02:45]} 29. f6 {[%emt 0:02:15]} Bf8 {[%emt 0:00:28]} 30. Qxa5 {[%emt 0:00:12]} Bc4 {[%emt 0:01:05]} 31. Rh3 {[%emt 0:03:54]} Rdc8 {[%emt 0:01:54]} 32. Qd2 {[%emt 0:01:54]} Qa7 {[%emt 0:00:43]} 33. Ne7 {[%emt 0:00:44]} Bxe7 {[%emt 0:01:02]} 34. fxe7 {[%emt 0:00:01]} d5 {[%emt 0:01:15]} 35. exd5 {[%emt 0:00:13]} Qxa4 {[%emt 0:00:42]} 36. Qe3 {[%emt 0:01:28]} Ra8 {[%emt 0:00:33]} 37. Kc1 {[%emt 0:00:40]} Bxb3 {[%emt 0:00:22]} 38. Qxb3 {[%emt 0:00:09]} Qf4+ {[%emt 0:01:07]} 39. Re3 {[%emt 0:00:44]} Ra1+ {[%emt 0:01:20]} 40. Kd2 {[%emt 0:00:01]} Qf2+ {[%emt 0:00:15]} 41. Re2 {[%emt 0:00:15]} Qd4+ {[%emt 0:00:39]} 42. Qd3 {[%emt 0:00:11]} Qb4+ {[%emt 0:01:07]} 43. c3 {[%emt 0:00:06]} Qxb2+ {[%emt 0:00:44]} 44. Qc2 {[%emt 0:01:50]} Rxd1+ {[%emt 0:00:04]} 45. Kxd1 {[%emt 0:00:06]} Qa1+ $2 {[%emt 0:01:19]} (45... Qa3 $1 $11 46. Rxe5 Ke8) 46. Kd2 {[%emt 0:00:52]} Rb8 {[%emt 0:00:23]} 47. Kd3 {[%emt 0:00:41]} Qa6+ {[%emt 0:00:26]} 48. c4 {[%emt 0:00:32]} Kxe7 {[%emt 0:00:26]} 49. Qa2 {[%emt 0:00:28]} Qb6 {[%emt 0:00:42]} 50. Rxe5+ {[%emt 0:00:14]} Kd8 {[%emt 0:00:36]} 51. Re1 {[%emt 0:00:48]} Qc7 {[%emt 0:00:19]} 52. Qa4 {[%emt 0:00:23]} Qd7 {[%emt 0:00:45]} 53. Qxd7+ {[%emt 0:00:24]} Kxd7 {[%emt 0:00:01]} 54. Kd4 {[%emt 0:00:17]} Kd6 {[%emt 0:00:33]} 55. Ra1 {[%emt 0:00:18]} Rb2 {[%emt 0:00:13]} 56. Ra6+ {[%emt 0:00:30]} Kd7 {[%emt 0:00:12]} 57. Ra7+ {[%emt 0:00:09]} Ke8 {[%emt 0:00:13]} 58. d6 {[%emt 0:00:26]} Rd2+ {[%emt 0:00:05]} 59. Kc5 {[%emt 0:00:16]} Rc2 {[%emt 0:00:17]} 60. Re7+ {[%emt 0:00:15]} Kf8 {[%emt 0:00:20]} 61. Re5 {[%emt 0:00:13]} Rd2 {[%emt 0:00:28]} 62. Rd5 {[%emt 0:00:14]} Ra2 {[%emt 0:01:11]} 63. d7 {[%emt 0:00:06]} Ra5+ {[%emt 0:00:06]} 64. Kb6 {[%emt 0:00:16]} Rxd5 {[%emt 0:00:08]} 65. cxd5 {[%emt 0:00:07]} Ke7 {[%emt 0:00:04]} 66. Kc7 {[%emt 0:00:09]} 1-0

[Event "IX Famalicao Open 2022"]
[Site "Vila Nova de Famalicao"]
[Date "2022.07.28"]
[Round "7.1"]
[White "Martinez Duany, Lelys Stanley"]
[Black "Abdisalimov, Abdimalik"]
[Result "1/2-1/2"]
[ECO "A33"]
[WhiteElo "2497"]
[BlackElo "2437"]
[Annotator "TA"]
[PlyCount "72"]
[EventDate "2022.07.25"]
[EventType "tourn"]
[EventCountry "POR"]
[SourceTitle "playchess.com"]
[Source "ChessBase"]
[SourceQuality "1"]
[TimeControl "5400+30"]

{[%evp 17,72,-14,-12,-12,17,-15,37,-22,0,-28,-38,-44,-37,-23,0,-10,0,0,6,-113,-112,-119,-95,-91,-57,-76,-74,-56,-31,-31,-31,-26,-25,-36,-6,-4,-8,-14,-9,-59,-10,-32,20,17,71,23,23,23,23,26,26,26,31,-1,-4,-1,-2]} 1. Nf3 c5 2. c4 Nc6 3. d4 cxd4 4. Nxd4 Nf6 5. Nc3 e6 6. e3 Bb4 7. Bd2 O-O 8. Be2 d5 9. Nxc6 {has lost popularity (9.cxd5).} bxc6 10. O-O {A32: Symmetrical English: 2 Nf3 Nf6 3 d4 cxd4 4 Nxd4 e6.} e5 11. Qa4 {[#]} Qe7 $146 (11... Rb8 $11) ({Predecessor:} 11... Qb6 12. cxd5 cxd5 13. Qb3 Rb8 14. a3 Be7 15. Qxb6 Rxb6 16. b4 Bd7 17. Rfc1 d4 {½-½ (59) Balokas,D (2208)-Nikolaidis,K (2178) Larisa 2021}) 12. Rfe1 (12. a3 $14 Bxc3 13. Bxc3) 12... Bd7 13. Qc2 Rab8 14. Rad1 Rfd8 15. Na4 Bxd2 16. Rxd2 d4 17. exd4 exd4 18. Rdd1 (18. Rxd4 $11 c5 19. Rdd1) 18... c5 $17 19. Bf3 Qd6 {[%cal Od4d3]} 20. Nc3 Qb6 21. Ne4 Nxe4 22. Bxe4 Qxb2 23. Bxh7+ Kh8 24. Qe4 {[#] aiming for Qh4.} Qb6 {Hoping for ...Qf6.} (24... Qxa2 $2 25. Qh4 Be6 26. Bb1+ Kg8 27. Qh7+ Kf8 28. Bxa2 $18) 25. Bf5 Qf6 (25... Ba4 $5 {[%cal Ra4d1]} 26. Rb1 Qf6 27. Rxb8 Rxb8 $11) 26. Bxd7 Rxd7 27. Rd3 {White wants to mate with Rh3+.} g6 {[%cal Od7e7] ...Re7! is the strong threat.} 28. g4 (28. h4 $11) 28... Kg8 (28... Kg7 $15 {should be considered.} 29. Rf3 Qd6) 29. Kg2 Rd6 (29... Rbb7 $15) 30. Rf3 $11 Qg7 (30... Qg5 $11 {remains equal.} 31. h4 Qd8) 31. Qf4 {White is more active.} ({Better is} 31. Qe7 $16 Rbd8 32. Qxa7) 31... Rbd8 32. Re5 d3 {[#] Threatens to win with ...Rd4.} 33. Re8+ $1 Rxe8 {[%cal Bd8e8,Be8e4,Be4g4][%mdl 32]} 34. Qxd6 Re4 {[%csl LRc4,LRg4]} 35. Rxd3 {Black must now prevent Qb8+.} Rxg4+ 36. Rg3 Qd4 {Weighted Error Value: White=0.19 (very precise) /Black=0.22 (precise)} 1/2-1/2

[Event "IX Famalicao Open 2022"]
[Site "Vila Nova de Famalicao"]
[Date "2022.07.28"]
[Round "7.2"]
[White "Aditya Mittal"]
[Black "Rodriguez Lopez, Rafael"]
[Result "1-0"]
[ECO "E71"]
[WhiteElo "2480"]
[BlackElo "2172"]
[Annotator "TA"]
[PlyCount "79"]
[EventDate "2022.07.25"]
[EventType "tourn"]
[EventCountry "POR"]
[SourceTitle "playchess.com"]
[Source "ChessBase"]
[SourceQuality "1"]
[TimeControl "5400+30"]

{[%evp 12,79,35,31,41,45,46,38,108,111,116,111,134,136,158,168,152,143,161,121,165,139,126,139,133,134,143,117,147,85,233,225,233,229,228,230,234,227,202,214,220,217,604,415,410,380,585,440,591,563,570,425,480,326,918,884,1353,877,856,865,797,793,764,763,29961,10654,29985,29986,29986,1578]} 1. d4 {[%emt 0:00:03]} Nf6 {[%emt 0:00:06]} 2. c4 {[%emt 0:00:02]} g6 {[%emt 0:00:06]} 3. Nc3 {[%emt 0:00:04]} Bg7 {[%emt 0:00:06]} 4. e4 {[%emt 0:00:02]} d6 {[%emt 0:00:05]} 5. h3 {[%emt 0:00:04]} O-O {[%emt 0:00:07]} 6. Be3 {[%emt 0:00:03]} c5 {[%emt 0:00:27]} 7. Nf3 {[%emt 0:00:05]} Qa5 {[%emt 0:01:02] E90: King's Indian: Classical: Early deviations and 6 h3.} 8. Bd3 $1 {[%emt 0:00:05] 8.Bd3 is better than 8.Qd2.} Nfd7 {[%emt 0:00:40]} 9. Be2 {[%emt 0:00:07] [#]} e5 $146 {[%emt 0:07:14]} ({Better is} 9... cxd4 $14 10. Nxd4 Nc6) ({Predecessor:} 9... cxd4 10. Nxd4 Nc6 11. O-O Nxd4 12. Bxd4 Bxd4 13. Qxd4 Qc5 14. Qd2 Nf6 15. Rfe1 Be6 {½-½ (105) Rodshtein,M (2695)-Pichot,A (2565) Douglas 2017}) 10. d5 $1 $16 {[%emt 0:10:15]} Na6 {[%emt 0:01:32]} 11. g4 Qd8 {[%emt 0:02:53]} 12. h4 {[%emt 0:03:10][%cal Bh3h4,Bh4h5][%mdl 32] White is more active.} Nf6 {[%emt 0:04:13]} 13. Nd2 {[%emt 0:03:21]} Nc7 {[%emt 0:15:59]} 14. h5 {[%emt 0:01:43]} a6 {[%emt 0:01:05]} 15. a4 {[%emt 0:01:16]} b6 {[%emt 0:04:14]} 16. f3 {[%emt 0:06:48]} Rb8 {[%emt 0:00:36]} 17. Bd3 {[%emt 0:01:30]} Bd7 {[%emt 0:00:42]} 18. Qe2 {[%emt 0:00:24]} Qe7 {[%emt 0:03:17]} 19. Qh2 {[%emt 0:09:26]} Rb7 {[%emt 0:00:23]} 20. Ne2 {[%emt 0:09:42]} (20. h6 $142 Bh8 21. Bg5) 20... b5 {[%emt 0:01:38] A mistake that costs the game.} (20... Rfb8 $16 {is a better defense.} 21. Ng3 Bf8) 21. axb5 $1 $18 {[%emt 0:04:17]} axb5 {[%emt 0:00:53] [#]} 22. g5 $1 {[%emt 0:06:01]} Nxh5 {[%emt 0:06:59] White must now prevent ...f5.} 23. Ng3 {[%emt 0:00:11]} bxc4 {[%emt 0:08:18]} 24. Nxh5 {[%emt 0:01:00]} (24. Nxc4 Rfb8) 24... gxh5 {[#]} 25. Qxh5 $1 {[%emt 0:00:18][%csl Gh1][%cal Rh5h7]} Rfb8 {[%emt 0:00:31]} 26. Nxc4 {[%emt 0:02:52]} Rb3 $2 {[%emt 0:01:09]} (26... Kf8 27. Qxh7 Bb5) 27. Bc2 {[%emt 0:02:13]} R3b4 {[%emt 0:00:40]} 28. b3 {[%emt 0:00:16]} Nb5 {[%emt 0:01:06]} (28... Kf8 $142 29. Qxh7 Ne8) 29. Qxh7+ {[%emt 0:09:09]} Kf8 {[%emt 0:00:07]} 30. g6 {[%emt 0:01:15] Threatens to win with gxf7.} fxg6 {[%emt 0:06:28]} 31. Qxg6 {[%emt 0:03:44]} Nd4 {[%emt 0:04:50]} 32. Kd2 {[%emt 0:02:42] Strongly threatening Bxd4.} ({Not} 32. Bxd4 exd4 33. Ra7 (33. Qxd6 $2 Qxd6 34. Nxd6 d3 $19) (33. Nxd6 d3 $11) 33... R4b7 34. Rxb7 Rxb7 $18) 32... Nxc2 $2 {[%emt 0:01:35]} (32... Be8 33. Qxd6 Qxd6 34. Nxd6 R8b6) 33. Kxc2 {[%emt 0:05:18] Hoping for Bh6.} Rxb3 {[%emt 0:00:10]} 34. Rag1 {[%emt 0:01:17][%cal Oh1h8] Rh8+! would kill now.} Qf6 {[%emt 0:02:52]} 35. Qxf6+ {[%emt 0:01:59]} Bxf6 {[%emt 0:01:10]} 36. Rh7 {[%emt 0:00:03] White wants to mate with Bh6+.} Rxe3 {[%emt 0:01:35]} 37. Nxe3 {[%emt 0:00:12]} Ba4+ {[%emt 0:00:19]} 38. Kc1 {[%emt 0:00:29] Intending Nf5 and mate.} Rb3 {[%emt 0:00:38]} 39. Nf5 {[%emt 0:00:41]} Rc3+ {[%emt 0:03:31]} 40. Kb2 {[%emt 0:00:25] Weighted Error Value: White=0.22 (precise) /Black=0.80} (40. Kb1 $142 Rb3+ 41. Ka2 Rxf3 42. Nxd6 Be8 43. Nxe8 c4 {[#]} 44. d6 $1 Rf2+ 45. Ka3) 1-0

[Event "IX Famalicao Open 2022"]
[Site "Vila Nova de Famalicao"]
[Date "2022.07.28"]
[Round "7.3"]
[White "Akhvlediani, Irakli"]
[Black "Petkov, Vladimir"]
[Result "1/2-1/2"]
[ECO "E11"]
[WhiteElo "2429"]
[BlackElo "2470"]
[Annotator "TA"]
[PlyCount "129"]
[EventDate "2022.07.25"]
[EventType "tourn"]
[EventCountry "POR"]
[SourceTitle "playchess.com"]
[Source "ChessBase"]
[SourceQuality "1"]
[TimeControl "5400+30"]

{[%evp 10,129,37,25,31,31,36,41,50,25,69,60,79,56,69,19,84,63,65,61,81,63,102,106,109,83,129,119,121,109,142,137,132,32,93,69,151,151,151,156,167,105,136,142,157,155,156,156,225,174,172,152,218,26,116,113,127,58,58,54,49,53,48,43,69,67,65,56,63,51,50,31,51,51,51,51,51,51,55,0,39,0,52,49,52,0,49,48,68,61,78,78,92,102,133,133,133,133,133,133,133,133,133,133,133,133,133,113,133,28,36,0,72,72,72,72,72,0,72,0,72,0]} 1. d4 {[%emt 0:00:03]} Nf6 {[%emt 0:00:24]} 2. c4 {[%emt 0:00:09]} e6 {[%emt 0:00:17]} 3. Nf3 {[%emt 0:00:05]} Bb4+ {[%emt 0:00:34]} 4. Nbd2 {[%emt 0:00:18]} O-O {[%emt 0:00:35]} 5. a3 {[%emt 0:00:03]} Be7 {[%emt 0:00:21]} 6. e4 {[%emt 0:00:05]} d6 {[%emt 0:00:19][%cal Oe6e5] E11: Bogo-Indian.} 7. Be2 $1 {[%emt 0:00:09] 7.Be2 scores better than 7.Bd3.} c5 {[%emt 0:00:49]} 8. d5 {[%emt 0:01:05]} Nbd7 {[%emt 0:00:34] White is slightly better.} 9. Qc2 {[%emt 0:03:12]} e5 10. h3 {[%emt 0:25:25][%cal Bh2h3,Bh3g4,Bg4g5][%mdl 32]} g6 {[%emt 0:20:30]} 11. g4 {[%emt 0:00:56] [#]} h5 $146 {[%emt 0:02:46]} ({Predecessor:} 11... Ne8 12. Nf1 Ng7 13. Bh6 Nf6 14. Bd3 Kh8 15. Ng3 a6 16. a4 b6 17. b3 Bd7 18. Qb1 Bc8 19. Qc2 Ng8 20. Be3 Nf6 {½-½ (20) Galunova,T (2164)-Stillger,B (2332) Tegernsee 2017}) 12. Nf1 {[%emt 0:17:17]} ({White should play} 12. Nh2 $14) 12... Kg7 {[%emt 0:05:51]} (12... hxg4 $11 13. hxg4 Nxg4) 13. Rg1 {[%emt 0:12:00]} hxg4 {[%emt 0:06:48]} 14. hxg4 {[%emt 0:00:04]} Rh8 {[%emt 0:00:25][%cal Ob7b5]} 15. Bd2 {[%emt 0:10:14]} Nh7 {[%emt 0:07:58] [#]} 16. g5 $1 {[%emt 0:00:54]} a6 {[%emt 0:13:26]} 17. a4 {[%emt 0:04:52]} b6 {[%emt 0:00:16]} (17... Kg8 $142) 18. Ne3 $16 {[%emt 0:02:58][%cal Oe3f5,Bf1e3,Be3d1,Bd1c3][%mdl 32]} Kg8 {[%emt 0:09:28][%cal Rh7g5]} (18... Nxg5 $2 19. Nxg5 Bxg5 {[#]} 20. Rxg5 $1 $18 {[%mdl 512]}) 19. Nd1 {[%emt 0:12:21]} Nhf8 {[%emt 0:02:20]} 20. Nc3 {[%emt 0:00:12]} Rh3 {[%emt 0:00:41]} 21. O-O-O {[%emt 0:00:37]} (21. Be3 $16) 21... Nh7 {[%emt 0:00:19]} (21... b5 $1 $14) 22. Be3 {[%emt 0:01:02]} Ndf8 {[%emt 0:00:34]} (22... b5 $1 $14) 23. Qd2 {[%emt 0:00:33]} Bd7 {[%emt 0:13:59]} 24. Kc2 {[%emt 0:00:01]} Qc8 {[%emt 0:01:41]} 25. Rg2 {[%emt 0:00:41]} (25. Ra1 $18) 25... Qe8 {[%emt 0:02:37]} 26. Ra1 {[%emt 0:00:21]} Rb8 {[%emt 0:00:11]} 27. b3 {[%emt 0:01:56]} Qc8 {[%emt 0:00:31]} 28. Kb2 {[%emt 0:00:27]} Bd8 {[%emt 0:01:23]} (28... Qd8 $16 {keeps fighting.} 29. Rag1 f6 30. gxf6 Bxf6) 29. Qd1 {[%emt 0:04:05]} Rb7 {[%emt 0:01:23]} 30. Ng1 {[%emt 0:00:50]} Rh1 {[%emt 0:00:30]} (30... Rxe3 $16 31. fxe3 Bxg5) 31. Bg4 $2 {[%emt 0:00:11]} (31. f4 $18) 31... Be7 {[%emt 0:01:31]} (31... Bxg4 $11 32. Qxg4 Qxg4 33. Rxg4 f6) 32. Bxd7 {[%emt 0:00:13]} Qxd7 {[%emt 0:01:13]} 33. Qg4 {[%emt 0:00:26]} ({White should try} 33. Rc1 $16) 33... Rh5 $14 {[%emt 0:00:53]} 34. Qxd7 {[%emt 0:00:53]} Nxd7 {[%emt 0:00:05]} 35. Nf3 {[%emt 0:00:05]} Rh3 {[%emt 0:00:59]} 36. Nd2 {[%emt 0:00:11]} Rh5 {[%emt 0:00:17][%cal Re7g5]} 37. Rag1 {[%emt 0:00:18]} Rb8 {[%emt 0:01:16]} 38. Nf3 {[%emt 0:01:17]} Kg7 {[%emt 0:00:19]} 39. Rg3 {[%emt 0:00:48]} Rh8 {[%emt 0:00:18]} 40. Bd2 {[%emt 0:01:30]} Bd8 {[%emt 0:00:52]} 41. Kc2 {[%emt 0:00:30]} Nhf8 {[%emt 0:00:37]} 42. Kd3 {[%emt 0:00:34]} Rh3 {[%emt 0:00:41]} 43. Ne2 {[%emt 0:00:38]} R3h5 {[%emt 0:00:35]} 44. Nc3 {[%emt 0:01:00]} Rh3 {[%emt 0:00:39]} 45. Ne2 {[%emt 0:00:42]} R3h5 $1 {[%emt 0:02:13]} 46. Bc3 {[%emt 0:00:01]} Kg8 {[%emt 0:00:11]} 47. Bd2 {[%emt 0:00:11]} Kg7 $1 {[%emt 0:00:30]} 48. Be3 {[%emt 0:00:18]} Nb8 {[%emt 0:00:16]} 49. Nd2 {[%emt 0:00:26]} Rh3 {[%emt 0:00:06]} 50. f4 {[%emt 0:00:35][%cal Bf2f4,Bf4f5,Bf5f6][%mdl 32]} Nbd7 {[%emt 0:00:21]} 51. f5 {[%emt 0:00:52]} R8h5 {[%emt 0:00:04]} 52. f6+ {[%emt 0:00:33]} Kg8 {[%emt 0:00:05]} 53. Nf3 {[%emt 0:01:05]} Nh7 {[%emt 0:00:06]} 54. Rxh3 {[%emt 0:00:32]} Rxh3 {[%emt 0:00:02]} 55. Ng3 {[%emt 0:00:03]} Kf8 {[%emt 0:00:22]} 56. Ke2 {[%emt 0:00:23]} Ke8 {[%emt 0:00:26]} 57. Kf2 {[%emt 0:00:04] Strongly threatening Kg2.} Nhf8 {[%emt 0:00:04]} 58. Kg2 {[%emt 0:00:43]} Rh7 {[%emt 0:00:03]} 59. a5 {[%emt 0:01:30]} (59. Nd2 $16) 59... bxa5 $11 {[%emt 0:00:43]} 60. Ra1 {[%emt 0:00:18]} Nb8 {[%emt 0:00:12]} (60... Nb6 $1 $11) 61. Bd2 {[%emt 0:00:12][%mdl 1024] White has strong compensation.} Kd7 {[%emt 0:00:08]} 62. Nh2 {[%emt 0:00:51] 0x0.001eb84b515adp-1022s more active pieces. The black rooks are badly placed.} Rh4 {[%emt 0:00:16]} 63. Nf3 {[%emt 0:00:08]} Rh7 {[%emt 0:00:02]} 64. Nh2 {[%emt 0:01:02]} Rh4 $1 {[%emt 0:00:03]} 65. Nf3 {[%emt 0:00:29] Black defended with fortune.  Weighted Error Value: White=0.25 (precise) /Black=0.16 (very precise)} (65. Ra2 $16) 1/2-1/2

[Event "IX Famalicao Open 2022"]
[Site "Vila Nova de Famalicao"]
[Date "2022.07.28"]
[Round "7.4"]
[White "Nigmatov, Ortik"]
[Black "Umetsubo, Cesar Hidemitsu"]
[Result "1-0"]
[ECO "B12"]
[WhiteElo "2437"]
[BlackElo "2405"]
[Annotator "TA"]
[PlyCount "63"]
[EventDate "2022.07.25"]
[EventType "tourn"]
[EventCountry "POR"]
[SourceTitle "playchess.com"]
[Source "ChessBase"]
[SourceQuality "1"]
[TimeControl "5400+30"]

{[%evp 13,62,0,23,0,0,0,10,27,39,27,17,37,88,68,90,87,83,89,75,59,72,52,45,41,68,48,132,138,177,177,186,179,245,240,238,252,246,177,237,225,318,262,384,323,348,330,343,325,29998,29999,29999]} 1. e4 c6 {[%cal Bc7c6,Bc6c5][%mdl 32]} 2. d4 d5 3. e5 Bf5 4. Nf3 e6 5. Be2 Ne7 6. O-O c5 {6...h6 gains popularity.} 7. c4 dxc4 8. Nc3 {B12: Caro-Kann: Advance Variation.} Nbc6 {[%cal Rc6d4]} 9. Bg5 {[#] Threatens to win with Nb5.} a6 {[%cal Rc5d4] Prevents Nb5.} 10. Nd2 {[%cal Bf3d2,Bd2c4,Bc4a5,Ba5b7,Bb7c5][%mdl 32] The position is equal.} Qxd4 {[#]} (10... cxd4 {[#]} 11. Nxc4 $1 Qb8 12. Nd6+ Kd7 13. Nxf7 $18) 11. Nxc4 $146 ({Predecessor:} 11. Be3 Qd8 12. Nxc4 Nd5 13. Bf3 Nxe3 14. fxe3 Bd3 15. Qa4 Qc7 16. Nb5 axb5 17. Bxc6+ Qxc6 18. Qxa8+ {1-0 (29) Sjugirov,S (2652)-Esipenko,A (2571) Moscow 2018}) 11... Qxd1 (11... Nd5 $2 12. Qb3 Ndb4 13. Rad1 $18) 12. Rfxd1 {Nd6+ is the strong threat.} Nc8 (12... Ng6 $14) 13. Bf3 {0x0.001e3b1258fddp-1022s more active pieces. The black rooks are badly placed.} Be7 14. Bxc6+ bxc6 15. Bxe7 $40 {[%mdl 128] Black is in trouble.} Kxe7 16. Na5 Na7 17. b3 Rhd8 18. Nb7 {[%csl LRc5,LRd8] Pair of Knights!} Rxd1+ 19. Rxd1 f6 (19... c4 $1 $14) 20. Nxc5 $16 {Hoping for Rd7+.} fxe5 21. Rd7+ Kf6 22. a4 {Prevents Nb5.} a5 (22... Nc8 $142 23. Rc7 Ne7) 23. N3e4+ $18 Bxe4 24. Nxe4+ {[%mdl 4096] Endgame KRN-KRN} Kg6 25. Nc5 {[%mdl 1024] White has strong compensation.} Kf6 (25... Nc8 $142 26. Rc7 (26. Nxe6 Kf6 $16) 26... Nb6 27. Rxc6 (27. Nxe6 Rc8 $16) 27... Nd5) 26. f3 h6 (26... Nc8 $142 27. Ne4+ Kg6) 27. Rc7 g5 (27... Nc8 $142 28. Rxc6 Kf7 29. Rxe6 Ne7 30. Rxe5 Nc6) 28. Kf2 h5 29. Ke3 Kf5 30. Ne4 {White threatens Rg7 and mate.} Nc8 $2 (30... Kg6 $18 31. Re7 g4 32. Rxe6+ Kf7 33. Rxe5 gxf3 34. Kxf3 Rb8 35. Nd6+ Kf6 36. Rxa5 Ke6) 31. Rg7 {[%csl Ge4][%cal Rg7g5]} g4 32. Rg5# {Weighted Error Value: White=0.14 (very precise) /Black=0.59} 1-0